bitfinex/quotes_ETHUSD_20260304
["timestamp","ask_amount","ask_price","bid_price","bid_amount"]
[1772651708654,0.42713697,2182.0,2181.6,0.001]
[1772651708902,0.42713697,2181.9,2181.6,0.001]
[1772651709067,0.42713697,2181.8,2181.4,0.001]
[1772651709258,1.5730785,2181.7,2181.4,0.001]
[1772651709460,0.42713697,2181.6,2181.4,0.001]
[1772651709700,0.42713697,2181.5,2181.4,0.001]
[1772651711391,1.14590001,2181.7,2181.4,0.001]
[1772651711392,0.002,2182.2,2181.4,0.001]
[1772651711770,0.42713697,2182.1,2181.4,0.001]
[1772651712882,0.42713697,2182.1,2181.1,2.67859277]
[1772651713080,0.42713697,2182.1,2181.1,1.53238347]
[1772651713387,1.14573785,2182.0,2181.1,2.67859245]
[1772651713588,1.14573785,2182.0,2181.1,1.53238347]
[1772651713790,1.14573785,2182.0,2181.1,2.67858547]
[1772651713997,0.42713697,2181.9,2181.1,2.67858547]
[1772651714194,4.58495142,2182.2,2181.3,1.53138347]
[1772651714195,0.002,2182.2,2181.3,1.53138347]
[1772651714364,0.002,2182.4,2181.7,2.11502044]
[1772651714563,1.14754706,2182.4,2181.5,2.67738347]
[1772651714772,1.14754706,2182.4,2181.5,1.53138347]
[1772651715769,0.002,2182.4,2181.5,2.6773801]
[1772651715965,0.002,2182.4,2181.5,1.53138347]
[1772651716183,0.002,2182.4,2181.5,2.67737256]
[1772651716378,0.002,2182.4,2181.5,1.53138347]
[1772651716566,1.56654728,2182.4,2181.1,2.67856253]
[1772651716767,1.56654728,2182.4,2181.1,0.001]
[1772651716990,1.56454728,2182.2,2181.1,0.001]
[1772651717175,0.14948499,2182.3,2181.1,0.001]
[1772651717176,1.56454728,2182.0,2181.1,0.001]
[1772651717777,1.14579036,2181.9,2181.1,0.001]
[1772651718203,2.71033764,2181.9,2181.1,0.001]
[1772651720471,1.47569757,2181.7,2180.9,0.001]
[1772651720678,1.47569757,2181.6,2180.9,0.001]
[1772651720893,1.47569757,2181.0,2179.9,0.27386472]
[1772651721100,1.47569757,2180.8,2179.3,4.23287523]
[1772651721273,1.62518256,2180.7,2179.3,4.23287523]
[1772651721598,1.47569757,2180.4,2178.9,1.49303315]
[1772651721799,1.14678899,2180.0,2178.9,1.49303315]
[1772651722373,1.14678899,2180.0,2178.5,2.63803315]
[1772651722574,1.14678899,2180.0,2178.5,3.78557896]
[1772651723198,1.14678899,2180.0,2178.6,1.49303315]
[1772651723393,0.42504546,2179.9,2178.6,1.49303315]
[1772651723589,0.42504546,2179.8,2178.6,1.49303315]
[1772651723899,1.14678899,2180.0,2178.6,1.49303315]
[1772651724107,1.14689421,2179.8,2178.8,1.49303315]
[1772651724505,1.14673638,2180.1,2178.8,1.49303315]
[1772651725379,1.14673638,2180.1,2178.9,1.144]
[1772651725581,4.58610793,2180.5,2179.0,1.49303315]
[1772651725781,0.42439215,2180.4,2179.0,1.49303315]
[1772651726018,1.14668379,2180.2,2179.2,1.51121746]
[1772651726812,1.14668379,2180.2,2179.2,2.65521746]
[1772651727010,6.17935754,2180.7,2179.2,2.65521746]
[1772651727011,1.14626318,2181.0,2179.3,1.51121746]
[1772651727181,0.42413094,2180.9,2179.3,1.51121746]
[1772651727507,0.42413094,2180.8,2179.5,1.51121746]
[1772651727708,0.42413094,2180.7,2179.5,1.51121746]
[1772651728011,1.14652602,2180.5,2179.6,1.14699944]
[1772651728222,1.14652602,2180.5,2179.7,1.51121746]
[1772651728713,1.14652602,2180.5,2179.5,2.29101916]
[1772651730012,4.5856851,2180.7,2179.5,2.29101916]
[1772651730190,0.42419189,2180.6,2179.5,2.29101916]
[1772651730384,4.5856851,2180.7,2179.5,2.29101916]
[1772651730385,0.42420481,2180.5,2179.5,2.29101916]
[1772651730595,4.5856851,2180.7,2179.6,1.51121746]
[1772651730908,0.42422523,2180.6,2179.6,1.51121746]
[1772651731108,0.42422523,2180.5,2179.6,1.51121746]
[1772651731314,4.5856851,2180.7,2179.6,1.51121746]
[1772651731625,2.01774221,2180.6,2179.3,1.143]
[1772651731835,0.42429363,2180.5,2179.3,1.143]
[1772651732121,1.1465786,2180.4,2179.4,1.1471047]
[1772651732278,1.1465786,2180.4,2179.5,1.51121746]
[1772651732681,0.42433458,2180.3,2179.1,2.65321746]
[1772651732913,1.1465786,2180.4,2179.2,1.51121746]
[1772651733114,0.42438323,2180.3,2179.2,1.51121746]
[1772651733320,0.42438323,2180.2,2179.2,1.51121746]
[1772651733534,1.1465786,2180.4,2179.2,1.51121746]
[1772651733678,0.42430052,2180.3,2179.2,1.51121746]
[1772651733880,0.42430052,2180.2,2179.2,1.51121746]
[1772651734083,1.37559092,2180.9,2179.3,1.51121746]
[1772651734284,0.42430052,2180.7,2179.3,1.51121746]
[1772651734499,0.42430052,2180.6,2179.3,1.51121746]
[1772651734709,1.37559092,2180.9,2179.3,1.51121746]
[1772651734907,0.42422835,2180.7,2179.3,1.51121746]
[1772651735108,0.42422835,2180.6,2179.5,1.51121746]
[1772651735290,0.42422835,2180.5,2179.5,1.51121746]
[1772651735490,6.17976301,2180.8,2179.5,1.51121746]
[1772651735709,0.4242724,2180.7,2179.5,1.51121746]
[1772651735914,6.17976301,2180.8,2179.6,1.51121746]
[1772651735915,0.4242724,2180.6,2179.6,1.51121746]
[1772651736115,0.4242724,2180.5,2179.6,1.51121746]
[1772651736315,1.57101785,2180.4,2179.7,1.14694682]
[1772651736491,1.1465786,2180.4,2179.6,2.658176]
[1772651736690,1.1465786,2180.4,2179.6,1.51121746]
[1772651737190,1.1465786,2180.4,2179.6,2.65121746]
[1772651737799,0.42465977,2180.3,2179.6,1.51121746]
[1772651737999,1.1465786,2180.4,2179.4,1.14806988]
[1772651738000,0.42472987,2180.2,2179.4,0.001]
[1772651738304,0.42472987,2180.1,2179.4,0.001]
[1772651738486,1.14668379,2180.2,2179.4,0.001]
[1772651738687,0.42477705,2180.1,2179.4,0.001]
[1772651738886,1.14668379,2180.2,2179.4,0.001]
[1772651739089,0.42477705,2180.1,2179.4,0.001]
[1772651739299,1.14668379,2180.2,2179.4,0.001]
[1772651739512,0.4248244,2180.1,2179.4,0.001]
[1772651739714,1.14668379,2180.2,2179.4,1.51221746]
[1772651739887,0.42481369,2180.1,2179.4,0.001]
[1772651740093,1.14668379,2180.2,2179.4,0.001]
[1772651740314,0.42482538,2180.1,2179.4,0.001]
[1772651740619,1.14678899,2180.0,2179.4,0.001]
[1772651740819,1.14642087,2180.7,2179.4,1.51221746]
[1772651741023,0.42487255,2180.6,2179.4,1.51221746]
[1772651741322,0.42487255,2180.5,2179.4,1.51221746]
[1772651741622,0.42487255,2180.4,2179.4,1.51221746]
[1772651741815,0.42487255,2180.3,2179.4,1.51221746]
[1772651742000,1.59344858,2180.6,2179.4,1.51221746]
[1772651742197,0.42500947,2180.5,2179.4,1.51221746]
[1772651742403,0.42500947,2180.4,2179.4,1.51221746]
[1772651742725,0.42500947,2180.3,2179.4,2.65927298]
[1772651743295,0.42500947,2180.3,2179.4,1.51221746]
[1772651743494,0.42500947,2180.3,2179.4,2.64821746]
[1772651743696,0.42500947,2180.3,2179.4,0.001]
[1772651743914,0.42500947,2180.2,2179.4,0.001]
[1772651744115,1.1465786,2180.4,2179.4,0.001]
[1772651744116,0.425399,2180.1,2179.4,0.001]
[1772651744398,0.425399,2180.0,2179.4,1.14809602]
[1772651744708,4.58631443,2180.5,2179.5,1.51121746]
[1772651744914,0.42584776,2180.4,2179.5,1.51121746]
[1772651745231,0.42584776,2180.3,2179.5,1.51121746]
[1772651745428,0.42584776,2180.2,2179.4,0.001]
[1772651745732,0.42584776,2180.1,2179.4,0.001]
[1772651745936,0.42584776,2180.0,2179.4,2.65931859]
[1772651746101,4.58631443,2180.5,2179.5,1.51121746]
[1772651746731,6.17955268,2180.7,2179.5,1.51121746]
[1772651746908,1.59344858,2180.6,2179.5,1.51121746]
[1772651747102,1.59344858,2180.6,2179.5,2.64521746]
[1772651747435,1.74293357,2180.5,2179.1,2.60123622]
[1772651747610,1.59344858,2180.4,2179.1,2.60123622]
[1772651747926,1.59344858,2180.4,2179.2,1.51121746]
[1772651747927,3.77355745,2180.4,2179.2,1.51121746]
[1772651748101,1.59344858,2180.3,2179.2,1.51121746]
[1772651748303,2.18010887,2180.4,2179.4,0.001]
[1772651748529,3.24390934,2180.6,2179.4,1.49975805]
[1772651748530,0.002,2180.2,2179.4,1.49975805]
[1772651748733,0.002,2180.2,2179.5,1.49875805]
[1772651750650,0.002,2180.2,2179.5,2.64579734]
[1772651750956,0.002,2180.2,2179.5,2.64580535]
[1772651751944,0.002,2180.4,2179.6,1.49875805]
[1772651752352,0.002,2180.7,2179.6,3.63285865]
[1772651752533,0.002,2180.7,2179.7,1.49875805]
[1772651752734,0.002,2180.7,2180.1,1.49875805]
[1772651752935,0.002,2180.7,2180.2,1.132]
[1772651753142,0.002,2180.7,2180.1,1.132]
[1772651753341,0.002,2180.7,2179.8,1.49875805]
[1772651753860,0.002,2180.7,2179.8,1.132]
[1772651753861,1.42958944,2180.7,2179.8,1.132]
[1772651754033,1.42958944,2180.7,2179.5,1.49875805]
[1772651754237,1.42958944,2180.7,2179.6,1.132]
[1772651754970,1.14647344,2180.6,2179.6,1.132]
[1772651755487,1.14647344,2180.6,2179.5,2.64580547]
[1772651755488,1.42758944,2180.5,2179.5,1.49875805]
[1772651755771,1.42758944,2180.5,2179.5,2.63075805]
[1772651755983,1.42758944,2180.5,2179.5,1.132]
[1772651756502,1.14647344,2180.6,2179.6,1.49875805]
[1772651756674,0.002,2180.7,2179.8,1.49875805]
[1772651757193,8.13892869,2181.4,2179.8,1.49875805]
[1772651757389,1.4566985,2181.4,2180.0,1.49875805]
[1772651757596,0.31060719,2181.4,2180.2,1.49875805]
[1772651757773,1.14602716,2181.5,2180.4,1.49875805]
[1772651757975,1.14602716,2181.5,2180.5,2.62975805]
[1772651758295,0.42842308,2181.4,2180.5,2.62975805]
[1772651758482,0.42842308,2181.3,2180.6,1.131]
[1772651758679,0.42842308,2181.2,2180.6,1.131]
[1772651758880,0.42842308,2181.1,2180.6,1.131]
[1772651759076,1.14616224,2181.2,2180.5,1.49875805]
[1772651759274,0.42799383,2181.1,2180.5,1.49875805]
[1772651759615,1.1458954,2181.7,2180.7,1.49875805]
[1772651759899,0.42761499,2181.6,2180.7,1.49875805]
[1772651760074,0.42761499,2181.5,2180.5,2.6452746]
[1772651760274,0.42761499,2181.4,2180.6,1.131]
[1772651760502,0.42761499,2181.3,2180.6,1.131]
[1772651760703,0.42761499,2181.2,2180.1,1.49875805]
[1772651760875,1.57382561,2181.1,2180.3,1.13]
[1772651761076,1.57382561,2181.1,2180.1,2.6454572]
[1772651761077,0.42761499,2181.0,2180.1,1.49875805]
[1772651761277,0.42761499,2180.9,2180.3,1.13]
[1772651761594,0.42761499,2180.8,2180.0,1.13]
[1772651761903,0.42761499,2180.7,2180.0,1.13]
[1772651762103,1.42758944,2181.0,2180.0,1.13]
[1772651762104,0.42761499,2180.6,2180.0,1.13]
[1772651762396,1.42758944,2181.0,2180.0,1.13]
[1772651762599,1.14621062,2181.1,2180.0,1.13]
[1772651762600,0.42753005,2180.9,2180.0,1.13]
[1772651762770,1.14642087,2180.7,2180.0,1.13]
[1772651762978,0.42753005,2180.6,2180.0,1.13]
[1772651763177,0.42753005,2180.5,2179.6,2.64573319]
[1772651763479,1.14642087,2180.7,2179.6,2.64573319]
[1772651763700,0.42757182,2180.6,2179.6,2.64573319]
[1772651763893,0.42757182,2180.5,2179.6,2.64573319]
[1772651764086,0.42757182,2180.4,2179.6,2.64573319]
[1772651764284,1.14642087,2180.7,2179.7,1.13]
[1772651764484,0.42756013,2180.6,2179.7,1.49875805]
[1772651764684,1.14642087,2180.7,2179.7,1.49875805]
[1772651764685,0.42756013,2180.5,2179.8,1.13]
[1772651764891,1.14663119,2180.3,2179.8,1.13]
[1772651765704,1.14661637,2180.4,2179.8,2.27688164]
[1772651765907,1.14621062,2181.1,2179.9,1.49875805]
[1772651766089,0.4274963,2181.0,2180.0,1.129]
[1772651766283,0.4274963,2180.9,2180.0,2.62775805]
[1772651766507,0.42739141,2180.8,2180.1,1.129]
[1772651766710,0.42739141,2180.7,2180.1,1.129]
[1772651766885,1.14652602,2180.5,2180.1,1.129]
[1772651767405,0.42743343,2180.4,2179.8,1.129]
[1772651767610,1.14652602,2180.5,2179.8,1.129]
[1772651767807,0.42745302,2180.4,2179.8,1.129]
[1772651768109,1.14652602,2180.5,2179.8,1.129]
[1772651768306,0.42745302,2180.4,2179.8,1.129]
[1772651768612,1.14652602,2180.5,2179.8,1.129]
[1772651768779,1.14663119,2180.3,2179.8,1.129]
[1772651768984,4.58652479,2180.4,2179.8,2.62775805]
[1772651769306,1.1463683,2180.8,2179.8,3.77463843]
[1772651769474,0.42748224,2180.7,2179.8,3.77463843]
[1772651769675,0.42748224,2180.6,2179.9,1.31695863]
[1772651769874,0.42748224,2180.5,2179.9,1.31695863]
[1772651770105,1.1463683,2180.8,2179.9,1.31695863]
[1772651770309,0.4275038,2180.7,2179.9,1.129]
[1772651770485,0.4275038,2180.6,2179.9,1.129]
[1772651770685,1.1463683,2180.8,2179.9,1.129]
[1772651770686,0.4275038,2180.5,2179.9,1.129]
[1772651770902,1.14663119,2180.3,2179.9,1.129]
[1772651771120,1.14663119,2180.3,2179.8,1.129]
[1772651771733,1.14663119,2180.3,2179.7,1.129]
[1772651772938,4.58652479,2180.5,2179.7,1.129]
[1772651773107,0.4275999,2180.4,2179.7,1.129]
[1772651773297,0.4275999,2180.3,2179.7,1.129]
[1772651773498,4.58652479,2180.5,2179.7,2.27594135]
[1772651773702,0.42758189,2180.4,2179.7,3.57655946]
[1772651773922,0.42758189,2180.3,2179.7,3.57655946]
[1772651774228,4.58652479,2180.5,2179.7,3.57655946]
[1772651774416,0.42764015,2180.4,2179.7,3.57655946]
[1772651774737,0.42764015,2180.3,2179.8,1.29654364]
[1772651775036,6.01327435,2180.7,2179.7,2.27594135]
[1772651775203,0.42765584,2180.6,2179.7,2.27594135]
[1772651775398,0.42765584,2180.5,2179.7,2.27594135]
[1772651775636,0.42765584,2180.4,2179.7,2.27594135]
[1772651775836,0.42765584,2180.3,2179.8,1.129]
[1772651776007,1.42758944,2180.6,2179.8,1.129]
[1772651776205,0.42768687,2180.5,2179.8,1.129]
[1772651776403,0.42768687,2180.4,2179.8,1.129]
[1772651776627,0.42768687,2180.3,2179.8,1.129]
[1772651776931,1.42758944,2180.6,2179.8,1.129]
[1772651777235,0.42773108,2180.5,2179.8,3.56424412]
[1772651777441,1.14621062,2181.1,2179.9,1.28836232]
[1772651777653,0.42771421,2181.0,2179.9,1.28836232]
[1772651777812,1.14621062,2181.1,2180.0,1.129]
[1772651777813,0.002,2180.5,2180.0,1.129]
[1772651779123,0.002,2180.5,2180.0,2.27576701]
[1772651779508,1.14642087,2180.7,2180.0,2.27476701]
[1772651779707,0.42803927,2180.6,2180.0,1.128]
[1772651779938,0.42803927,2180.5,2180.0,2.27478249]
[1772651780139,1.14642087,2180.7,2180.0,2.27478249]
[1772651780140,0.42803927,2180.4,2180.0,2.27478249]
[1772651780335,1.14642087,2180.7,2180.0,2.27478249]
[1772651780639,0.42810725,2180.6,2180.0,3.76811052]
[1772651780809,1.14626318,2181.0,2180.1,1.49332803]
[1772651781011,0.42807782,2180.9,2180.1,1.49332803]
[1772651781215,1.57445549,2180.8,2180.2,1.14668379]
[1772651781422,0.42807782,2180.7,2180.2,1.14668379]
[1772651781625,0.42807782,2180.7,2180.1,6.08006319]
[1772651781626,0.42807782,2180.7,2180.1,1.49332803]
[1772651781826,0.42807782,2180.6,2180.2,1.128]
[1772651782029,1.14612735,2181.3,2180.3,1.49332803]
[1772651782234,0.002,2181.4,2180.4,1.49332803]
[1772651782737,1.14795109,2181.6,2180.7,1.49332803]
[1772651782942,1.14795109,2181.6,2180.8,1.128]
[1772651783141,0.002,2181.6,2180.9,1.14631574]
[1772651783843,0.002,2181.6,2180.9,1.128]
[1772651784713,0.002,2181.6,2181.0,1.49332803]
[1772651785222,0.002,2181.6,2181.1,1.14621062]
[1772651785735,0.002,2181.6,2181.0,6.07832709]
[1772651785736,0.002,2181.6,2181.0,2.63958212]
[1772651785910,0.002,2181.6,2181.1,1.128]
[1772651787150,0.002,2181.6,2181.2,1.48968325]
[1772651787459,0.002,2181.9,2181.3,1.14610553]
[1772651787752,0.002,2181.9,2181.2,1.48968325]
[1772651787956,0.002,2181.9,2181.2,2.63584076]
[1772651788956,0.002,2181.9,2181.1,2.27417542]
[1772651789353,0.002,2181.9,2181.2,1.129]
[1772651789878,0.002,2181.9,2181.0,4.58497087]
[1772651789879,1.48137064,2181.9,2181.0,1.129]
[1772651790561,1.48137064,2181.9,2181.0,2.61868325]
[1772651791058,1.48137064,2181.9,2181.0,1.129]
[1772651791459,2.62521352,2181.8,2181.0,1.129]
[1772651792360,0.002,2181.7,2181.0,1.129]
[1772651794351,1.47937064,2181.6,2181.0,1.129]
[1772651794547,1.47937064,2181.6,2180.5,2.63620927]
[1772651794770,0.002,2181.7,2180.4,1.129]
[1772651794771,1.47937064,2181.4,2180.4,1.129]
[1772651794944,0.002,2181.7,2180.4,1.129]
[1772651794945,1.47937064,2181.2,2180.4,1.129]
[1772651795538,1.47937064,2181.0,2180.4,1.129]
[1772651796165,1.47937064,2181.0,2180.2,0.001]
[1772651796350,1.47937064,2181.0,2180.2,1.13]
[1772651797758,1.47937064,2180.8,2180.2,1.13]
[1772651799957,1.14642087,2180.7,2180.2,1.13]
[1772651800153,1.47937064,2180.6,2180.0,0.001]
[1772651800465,1.47937064,2180.6,2180.0,1.14777748]
[1772651800666,1.14635557,2180.9,2180.1,1.48968325]
[1772651801477,1.14635557,2180.9,2180.2,1.128]
[1772651803755,1.14635557,2180.9,2180.1,2.63641266]
[1772651804050,1.80177662,2188.0,2180.2,1.128]
[1772651804253,1.80177662,2188.0,2180.0,0.001]
[1772651804254,1.47937064,2180.9,2180.0,0.001]
[1772651804557,1.47937064,2180.7,2180.0,0.001]
[1772651804893,1.47937064,2181.3,2180.1,1.48968325]
[1772651805178,1.90605293,2181.2,2180.1,1.48968325]
[1772651805380,1.47937064,2181.2,2180.3,0.001]
[1772651805685,1.48137064,2181.5,2180.3,1.49068325]
[1772651806261,1.47937064,2181.3,2180.4,2.2745786]
[1772651806578,1.47937064,2181.3,2180.4,1.128]
[1772651807451,1.14605299,2181.4,2180.5,1.48968325]
[1772651808056,2.62542363,2181.4,2180.5,1.48968325]
[1772651808802,2.62542363,2181.4,2180.5,2.63620696]
[1772651809702,2.62542363,2181.4,2180.3,0.001]
[1772651809703,1.44720592,2181.3,2180.3,0.001]
[1772651810005,1.44720592,2181.1,2180.4,1.127]
[1772651810506,1.44720592,2181.1,2180.3,0.001]
[1772651810710,1.14626318,2181.0,2180.3,0.001]
[1772651811077,1.44720592,2180.9,2180.3,0.001]
[1772651812790,1.44720592,2180.7,2180.3,0.001]
[1772651814120,4.58547322,2180.9,2180.3,0.001]
[1772651814121,1.14635753,2180.9,2180.3,0.001]
[1772651814282,1.44720592,2180.8,2180.3,0.001]
[1772651814910,1.44720592,2180.6,2180.3,0.001]
[1772651815675,1.44720592,2180.6,2180.0,0.001]
[1772651816892,1.14652602,2180.5,2180.0,0.001]
[1772651817534,2.59373194,2180.5,2180.0,0.001]
[1772651817725,2.59373194,2180.5,2180.2,0.001]
[1772651819295,1.44720592,2180.8,2180.2,0.001]
[1772651819917,1.44720592,2180.6,2180.2,0.001]
[1772651820231,1.14626318,2181.0,2180.2,0.001]
[1772651820232,1.44720592,2180.9,2180.2,0.001]
[1772651820414,0.42766327,2180.8,2180.2,0.001]
[1772651820621,4.58705272,2181.2,2180.2,1.43464743]
[1772651820622,2.59540292,2181.2,2180.2,1.43464743]
[1772651821301,0.42773586,2181.1,2180.3,1.14663119]
[1772651821501,2.59540292,2181.2,2180.4,1.125]
[1772651821721,0.42776428,2181.1,2180.4,1.125]
[1772651821918,2.59540292,2181.2,2180.2,2.58129951]
[1772651822101,0.42777409,2181.1,2180.4,1.125]
[1772651822303,2.59540292,2181.2,2180.4,1.125]
[1772651822615,0.42792835,2181.1,2180.4,1.125]
[1772651822805,1.44720592,2181.1,2180.4,1.125]
[1772651823205,1.14631574,2180.9,2180.2,1.43464743]
[1772651823412,1.14631574,2180.9,2180.3,1.125]
[1772651823715,2.59352166,2180.9,2180.2,1.126]
[1772651823922,0.42814809,2180.8,2180.2,1.126]
[1772651824102,2.59352166,2180.9,2180.2,1.126]
[1772651824306,0.42837174,2180.8,2180.2,1.126]
[1772651824616,2.59352166,2180.9,2180.2,1.126]
[1772651824815,0.42837174,2180.8,2180.2,1.126]
[1772651825137,2.59352166,2180.9,2180.2,1.126]
[1772651825305,1.14642087,2180.7,2180.2,1.126]
[1772651826026,1.14642087,2180.7,2180.2,2.27267877]
[1772651826827,1.14642087,2180.7,2180.2,1.126]
[1772651827414,4.58568349,2180.8,2180.2,2.55964743]
[1772651827611,4.58568349,2180.8,2180.2,3.70632935]
[1772651827814,1.44720592,2180.6,2179.5,2.12678031]
[1772651828150,1.51274192,2179.8,2178.1,1.43364743]
[1772651828304,1.44720592,2179.5,2178.4,2.8e-07]
[1772651828501,1.44720592,2179.3,2178.4,2.8e-07]
[1772651828713,3.16762284,2179.2,2178.5,14.04167715]
[1772651828914,3.63453247,2179.6,2178.5,14.04167715]
[1772651829209,3.63453247,2179.6,2178.6,1.43364743]
[1772651829210,3.16745389,2179.5,2178.6,1.43364743]
[1772651829408,1.57490466,2179.4,2178.6,1.43364743]
[1772651829612,1.1471047,2179.4,2178.6,1.43364743]
[1772651830739,4.67394545,2179.9,2178.8,1.43364743]
[1772651830740,1.14684159,2179.9,2178.8,1.43364743]
[1772651831313,1.14684159,2179.9,2178.9,1.14736793]
[1772651831513,1.44720592,2179.8,2178.9,15.16667715]
[1772651832216,1.44720592,2179.6,2178.7,1.125]
[1772651832412,1.44720592,2179.6,2178.3,1.43364743]
[1772651832634,2.18732655,2179.3,2178.0,4.10213693]
[1772651832834,1.44720592,2179.1,2178.0,5.22813693]
[1772651833028,4.60334841,2179.0,2178.0,5.22813693]
[1772651833223,1.44720592,2179.0,2178.0,1.126]
[1772651833425,1.14742059,2178.8,2178.0,1.126]
[1772651833631,2.59462651,2178.8,2178.0,1.126]
[1772651834542,1.14742059,2178.8,2178.0,1.126]
[1772651834709,1.14742059,2178.8,2178.1,1.43364743]
[1772651835515,6.03688831,2179.0,2177.8,1.95486007]
[1772651835716,1.44720592,2178.9,2177.8,0.52121264]
[1772651836151,6.03688831,2179.0,2177.9,1.43364743]
[1772651836349,1.44720592,2178.9,2177.8,0.52121264]
[1772651837248,1.44720592,2178.7,2177.5,1.43364743]
[1772651837633,1.14752593,2178.6,2177.5,1.43364743]
[1772651837829,1.14752593,2178.6,2177.5,2.58174727]
[1772651838148,1.14752593,2178.6,2177.5,2.58174773]
[1772651838648,1.14752593,2178.6,2177.6,1.86310958]
[1772651839431,3.03507004,2178.6,2177.7,1.125]
[1772651839635,3.03507004,2178.6,2177.6,1.86310958]
[1772651839817,1.88754411,2178.5,2177.7,1.125]
[1772651840216,1.88754411,2178.5,2177.6,2.51166039]
[1772651840440,1.88754411,2178.5,2177.6,2.51165774]
[1772651840843,1.14752593,2178.6,2177.6,2.51165774]
[1772651841424,1.14752593,2178.6,2177.7,1.125]
[1772651841864,1.88754411,2178.5,2177.7,1.125]
[1772651842268,1.88754411,2178.5,2177.7,2.2729992]
[1772651842548,1.88754411,2178.5,2177.7,1.125]
[1772651842748,1.88754411,2178.5,2177.8,0.001]
[1772651843163,0.002,2178.4,2177.8,0.001]
[1772651843322,3.03480674,2179.1,2177.8,1.86410958]
[1772651843524,0.002,2178.6,2177.8,1.86410958]
[1772651843748,0.002,2178.6,2178.0,3.01095163]
[1772651844137,1.88954411,2178.9,2177.9,1.125]
[1772651844352,1.88954411,2178.9,2177.9,2.27288239]
[1772651844524,1.88954411,2178.9,2177.9,2.2728884]
[1772651844724,1.88954411,2178.9,2177.9,1.125]
[1772651844939,1.88954411,2178.9,2177.9,4.13600149]
[1772651845252,0.002,2178.9,2178.0,1.86310958]
[1772651845955,0.002,2178.9,2178.0,3.01090063]
[1772651846127,1.86097589,2178.9,2178.0,3.01090063]
[1772651846683,1.86097589,2178.9,2177.8,1.14891894]
[1772651846984,1.86097589,2178.9,2177.8,0.001]
[1772651847286,1.86097589,2178.9,2177.9,1.81923811]
[1772651847461,1.86097589,2178.9,2177.8,0.001]
[1772651848057,1.85897589,2178.7,2177.8,0.001]
[1772651849882,1.35897589,2178.7,2177.8,0.001]
[1772651850783,1.85897589,2178.5,2177.8,0.001]
[1772651852787,1.85897589,2178.3,2177.8,0.001]
[1772651853362,1.85897589,2178.3,2177.5,0.001]
[1772651854260,1.14763128,2178.4,2177.5,1.82023811]
[1772651854461,3.00660717,2178.4,2177.5,1.82023811]
[1772651854661,2.7236723,2178.3,2177.5,1.82023811]
[1772651854862,1.14773666,2178.2,2177.5,1.82023811]
[1772651855283,1.14773666,2178.2,2177.5,0.001]
[1772651855473,1.14773666,2178.2,2177.7,0.001]
[1772651855776,1.85897589,2178.1,2177.7,0.001]
[1772651856264,1.14773666,2178.2,2177.7,0.001]
[1772651856265,1.85897589,2177.9,2177.7,0.001]
[1772651856463,2.73115838,2177.8,2177.5,0.001]
[1772651857066,2.73115838,2177.7,2177.5,0.001]
[1772651857394,1.14779707,2178.1,2177.5,0.001]
[1772651857592,2.73569501,2178.0,2177.5,0.001]
[1772651857794,1.14777553,2178.2,2177.5,0.001]
[1772651857964,3.16335547,2178.1,2177.5,0.001]
[1772651858164,2.73569501,2178.0,2177.5,0.001]
[1772651858466,2.73569501,2177.9,2177.5,0.001]
[1772651858665,1.14777553,2178.2,2177.5,0.001]
[1772651858893,3.16449117,2178.1,2177.5,0.001]
[1772651859195,3.88463117,2178.0,2177.5,0.001]
[1772651859397,2.18732655,2178.3,2177.6,1.81923811]
[1772651859703,1.14963282,2178.4,2177.6,1.81923811]
[1772651859994,2.73688732,2178.3,2177.6,1.81923811]
[1772651860168,1.14963282,2178.4,2177.5,0.001]
[1772651860169,2.73688732,2178.2,2177.5,0.001]
[1772651860370,2.73826622,2178.1,2177.5,0.001]
[1772651860673,1.85897589,2178.3,2177.5,0.001]
[1772651860869,3.16618125,2178.2,2177.5,0.001]
[1772651861093,1.14784205,2178.0,2177.5,0.001]
[1772651861320,2.73824108,2177.9,2177.5,0.001]
[1772651861526,1.14784205,2178.0,2177.5,0.001]
[1772651861694,3.17016849,2177.9,2177.5,0.001]
[1772651862029,5.0291257,2177.8,2177.5,0.001]
[1772651862189,3.17014981,2177.7,2177.5,0.001]
[1772651862511,2.74166691,2177.6,2177.5,0.001]
[1772651864083,3.88971981,2177.6,2177.5,0.001]
[1772651864588,2.74166691,2177.6,2177.5,0.001]
[1772651865393,3.88971981,2177.6,2177.5,0.001]
[1772651865901,2.18732655,2178.0,2177.5,0.59545681]
[1772651866231,1.14963282,2178.4,2177.5,0.59545681]
[1772651866394,0.42840322,2178.3,2177.5,0.59545681]
[1772651866725,1.14963967,2178.4,2177.5,0.59545681]
[1772651866892,0.42841698,2178.3,2177.5,0.59545681]
[1772651867088,0.42841698,2178.2,2177.5,0.001]
[1772651867307,1.14772545,2178.3,2177.5,1.14910562]
[1772651867616,0.42845444,2178.2,2177.7,0.001]
[1772651867812,3.00670134,2178.3,2177.7,0.001]
[1772651868021,0.002,2178.1,2177.7,0.001]
[1772651869235,0.4285107,2178.0,2177.7,0.001]
[1772651869403,0.002,2178.1,2177.7,0.001]
[1772651871123,1.14965404,2178.4,2177.7,0.001]
[1772651871304,0.002,2178.4,2177.7,0.001]
[1772651871499,0.002,2178.6,2177.7,0.64932506]
[1772651872031,1.14939918,2178.9,2177.8,0.64832506]
[1772651872199,0.42830525,2178.8,2177.8,0.64832506]
[1772651872401,0.002,2178.9,2177.8,0.64832506]
[1772651872602,1.14937981,2178.9,2178.0,0.64505941]
[1772651872821,1.14937981,2178.9,2178.1,1.119]
[1772651873228,1.85651805,2178.8,2177.7,0.001]
[1772651873437,3.4320595,2178.7,2177.8,1.14794746]
[1772651873606,3.00399131,2178.7,2177.8,1.14794746]
[1772651874027,2.28464713,2178.6,2177.7,1.12]
[1772651874229,1.85651805,2178.4,2177.7,2.26799717]
[1772651874801,1.85651805,2178.4,2177.7,2.26798542]
[1772651875298,1.85651805,2178.4,2177.7,2.26799597]
[1772651875721,3.00418817,2178.4,2177.7,2.26799597]
[1772651875928,3.00418817,2178.4,2177.7,1.12]
[1772651876333,3.00418817,2178.4,2177.7,2.26799327]
[1772651876734,3.00418817,2178.4,2177.7,1.12]